bitfinex-derivatives/quotes_ETHF0:USTF0_20250410
["timestamp","ask_amount","ask_price","bid_price","bid_amount"]
[1744257093057,1.2419,1611.1,1611.0,1.24193]
[1744257093263,1.2419,1611.1,1611.0,4.29653]
[1744257093961,0.00931532,1611.2,1611.1,1.24185]
[1744257094160,0.00931532,1611.2,1611.1,12.50305]
[1744257094459,0.00931532,1611.2,1611.1,7.50305]
[1744257096063,0.00931532,1611.2,1611.1,3.0534]
[1744257096268,1.24204,1610.9,1610.8,1.24206]
[1744257096665,1.24204,1610.9,1610.7,9.1055]
[1744257096871,3.115,1610.8,1610.7,10.3476]
[1744257097053,3.115,1610.8,1610.7,4.3516]
[1744257097259,3.115,1610.8,1610.7,7.4938]
[1744257098473,4.35709,1610.8,1610.7,7.4938]
[1744257099367,1.24216,1610.7,1610.6,4.47226]
[1744257099568,4.40266,1610.7,1610.6,7.61556]
[1744257100470,3.1605,1610.7,1610.6,7.61556]
[1744257101068,1.24199,1611.0,1610.6,9.5812]
[1744257101266,3.1539,1611.0,1610.9,1.24201]
[1744257101666,11.86492,1611.1,1611.0,1.24193]
[1744257102365,15.01882,1611.1,1611.0,3.1495]
[1744257102571,15.01882,1611.1,1611.0,4.39143]
[1744257103369,1.24185,1611.1,1611.0,4.39138]
[1744257103561,4.36705,1611.1,1611.0,4.39138]
[1744257104868,7.58415532,1611.2,1611.1,1.24185]
[1744257105070,7.58415532,1611.2,1611.1,4.36235]
[1744257106471,7.58415532,1611.2,1611.1,3.1205]
[1744257107174,1.24193,1611.0,1610.9,7.87656]
[1744257107375,1.24193,1611.0,1610.9,7.65796]
[1744257108373,1.24193,1611.0,1610.9,6.416]
[1744257108576,4.38903,1611.0,1610.9,3.1119]
[1744257109173,1.24209,1610.8,1610.7,7.45861]
[1744257109376,1.24209,1610.8,1610.7,10.57051]
[1744257109780,4.27079,1610.8,1610.7,10.57051]
[1744257110978,3.0287,1610.8,1610.7,10.57051]
[1744257111179,9.04868,1611.0,1610.9,1.24201]
[1744257111480,4.27068,1611.0,1610.9,1.24201]
[1744257112166,1.24192,1611.1,1611.0,1.24187]
[1744257113376,15.58055532,1611.2,1611.1,1.24185]
[1744257113578,12.26565532,1611.2,1611.1,1.24185]
[1744257113977,9.23695532,1611.2,1611.1,7.58345]
[1744257114179,4.78731532,1611.2,1611.1,7.58345]
[1744257114478,0.00931532,1611.2,1611.1,7.58345]
[1744257114873,1.25109532,1611.2,1611.1,7.58345]
[1744257115980,1.25109532,1611.2,1611.1,6.3416]
[1744257116179,4.43059532,1611.2,1611.1,6.3416]
[1744257116368,4.43059532,1611.2,1611.1,7.58345]
[1744257118174,0.00931532,1611.2,1611.1,7.58345]
[1744257119083,1.25109532,1611.2,1611.1,7.58345]
[1744257119676,0.00931532,1611.2,1611.1,7.58345]
[1744257120183,0.00931532,1611.2,1611.1,10.79125]
[1744257121777,0.00931532,1611.2,1611.1,6.3416]
[1744257121978,1.25109532,1611.2,1611.1,6.3416]
[1744257122177,1.24185,1611.1,1611.0,3.0799]
[1744257122483,0.00931532,1611.2,1611.1,1.24185]
[1744257122686,1.25113532,1611.2,1611.1,3.0374]
[1744257122877,1.24185,1611.1,1611.0,3.0799]
[1744257123078,4.43695,1611.1,1611.0,4.32181]
[1744257123384,1.25115532,1611.2,1611.1,1.24185]
[1744257123578,1.25115532,1611.2,1611.1,4.27925]
[1744257124282,1.25115532,1611.2,1611.1,3.0374]
[1744257124585,4.44625532,1611.2,1611.1,3.0374]
[1744257124785,4.44625532,1611.2,1611.1,4.27925]
[1744257125978,0.00931532,1611.2,1611.1,4.27925]
[1744257126289,1.25109532,1611.2,1611.1,4.27925]
[1744257126487,1.25109532,1611.2,1611.1,3.0374]
[1744257127087,1.25109532,1611.2,1611.1,4.27925]
[1744257127487,0.00931532,1611.2,1611.1,4.27925]
[1744257127784,1.25109532,1611.2,1611.1,4.27925]
[1744257128482,0.00931532,1611.2,1611.1,4.27925]
[1744257128688,0.00931532,1611.2,1611.1,7.48705]
[1744257128984,0.00931532,1611.2,1611.1,12.48705]
[1744257129986,3.45011011,1611.3,1611.2,1.24178]
[1744257130184,2.25111454,1611.4,1611.3,1.2417]
[1744257130376,9.38627473,1611.6,1611.5,1.24155]
[1744257130581,9.38627473,1611.6,1611.5,9.44935]
[1744257131186,9.38627473,1611.6,1611.5,50.24935]
[1744257133085,9.38627473,1611.6,1611.5,50.87015]
[1744257133283,9.38627473,1611.6,1611.5,45.87015]
[1744257133483,9.38627473,1611.6,1611.5,52.10285]
[1744257133791,11.78709713,1611.7,1611.5,52.10285]
[1744257133792,0.00926099,1611.7,1611.6,1.24147]
[1744257133983,0.00926099,1611.7,1611.6,4.45557]
[1744257134488,0.00926099,1611.7,1611.6,45.25557]
[1744257135188,1.25065099,1611.7,1611.6,44.0141]
[1744257135891,1.25065099,1611.7,1611.6,45.25557]
[1744257136292,0.00926099,1611.7,1611.6,45.25557]
[1744257136494,1.25065099,1611.7,1611.6,45.25557]
[1744257136992,1.25065099,1611.7,1611.6,44.0141]
[1744257137286,3.21356099,1611.7,1611.6,45.25557]
[1744257137493,1.25065099,1611.7,1611.6,45.25557]
[1744257138899,0.00926099,1611.7,1611.6,45.25557]
[1744257141994,1.25065099,1611.7,1611.6,44.0141]
[1744257142295,1.25065099,1611.7,1611.6,40.8]
[1744257142894,1.25065099,1611.7,1611.6,43.8737]
[1744257143095,1.25065099,1611.7,1611.6,45.11517]
[1744257143298,1.25065099,1611.7,1611.6,43.8737]
[1744257144296,1.25065099,1611.7,1611.6,40.8]
[1744257144599,4.21675099,1611.7,1611.6,42.04147]
[1744257144801,4.21675099,1611.7,1611.6,40.8]
[1744257145803,0.00926099,1611.7,1611.6,45.22007]
[1744257145999,0.00926099,1611.7,1611.6,48.27887]
[1744257146198,1.25065099,1611.7,1611.6,48.27887]
[1744257147297,0.00926099,1611.7,1611.6,51.48667]
[1744257147693,1.25065099,1611.7,1611.6,48.27887]
[1744257148094,0.00926099,1611.7,1611.6,48.27887]
[1744257148805,0.00926099,1611.7,1611.6,51.48667]
[1744257149309,1.25065099,1611.7,1611.6,48.27887]
[1744257151704,0.00926099,1611.7,1611.6,48.27887]
[1744257152101,1.25065099,1611.7,1611.6,48.27887]
[1744257152302,1.25065099,1611.7,1611.6,47.0374]
[1744257152497,1.25065099,1611.7,1611.6,40.8]
[1744257152797,1.24155,1611.5,1611.4,3.03641532]
[1744257152998,4.44935,1611.5,1611.4,0.00931532]
[1744257153200,3.10412,1611.4,1611.0,9.7104547]
[1744257153398,1.24185,1611.1,1611.0,9.7104547]
[1744257154205,15.38215,1611.1,1611.0,9.7104547]
[1744257154406,20.14815,1611.1,1611.0,9.7104547]
[1744257156302,15.14815,1611.1,1611.0,9.7104547]
[1744257156799,11.94035,1611.1,1611.0,9.7104547]
[1744257157004,17.77435,1611.1,1611.0,9.7104547]
[1744257157198,17.77435,1611.1,1611.0,12.8281547]
[1744257157502,7.07585,1611.1,1611.0,14.0700847]
[1744257158410,7.07585,1611.1,1611.0,4.35963]
[1744257158909,7.07585,1611.1,1611.0,3.1177]
[1744257160006,7.07585,1611.1,1611.0,4.35963]
[1744257162516,7.07585,1611.1,1611.0,3.1177]
[1744257162715,1.24185,1611.1,1611.0,3.1177]
[1744257163905,1.24185,1611.1,1611.0,4.35963]
[1744257165820,1.24185,1611.1,1611.0,7.41143]
[1744257167216,1.24185,1611.1,1611.0,6.1695]
[1744257167411,1.24185,1611.1,1611.0,3.1177]
[1744257167612,4.29445,1611.1,1611.0,3.1177]
[1744257168914,4.29445,1611.1,1610.9,40.80931532]
[1744257169118,5.99993,1611.0,1610.9,0.00931532]
[1744257169415,12.15663,1611.0,1610.9,0.00931532]
[1744257169620,9.10403,1611.0,1610.9,0.00931532]
[1744257169822,9.10403,1611.0,1610.9,2.90881532]
[1744257171610,1.24193,1611.0,1610.9,4.15082532]
[1744257171821,10.28371,1611.1,1611.0,1.24193]
[1744257172117,10.28371,1611.1,1611.0,8.6851]
[1744257172816,10.28371,1611.1,1611.0,9.92703]
[1744257174532,4.44971,1611.1,1611.0,9.92703]
[1744257174930,4.44971,1611.1,1611.0,8.6851]
[1744257175132,4.44971,1611.1,1611.0,9.92703]
[1744257175921,1.24191,1611.1,1611.0,9.92703]
[1744257176123,1.24183,1611.2,1611.1,1.24178]
[1744257176428,1.24183,1611.2,1611.1,4.33608]
[1744257178122,7.44068,1611.4,1611.3,1.2417]
[1744257178430,1.24168,1611.4,1611.3,1.2417]
[1744257178632,1.24168,1611.4,1611.3,4.2371]
[1744257178935,7.07554,1611.6,1611.5,1.24155]
[1744257179438,1.24155,1611.5,1611.4,7.33059]
[1744257179637,1.24155,1611.5,1611.4,4.30769]
[1744257180839,7.0755,1611.6,1611.5,1.24155]
[1744257181033,0.00926099,1611.7,1611.6,1.24147]
[1744257181737,0.00926099,1611.7,1611.6,3.87677]
[1744257182328,0.00926099,1611.7,1611.6,44.67677]
[1744257189647,0.00926099,1611.7,1611.6,47.88457]
[1744257190943,1.25065099,1611.7,1611.6,43.4353]
[1744257191140,6.25065099,1611.7,1611.6,40.8]
[1744257191343,11.69695099,1611.7,1611.6,40.8]
[1744257193144,6.69695099,1611.7,1611.6,40.8]
[1744257193345,1.2417,1611.4,1611.2,2.7145]
[1744257193545,1.2417,1611.4,1611.2,3.95621]
[1744257193546,1.2417,1611.3,1611.2,3.95621]
[1744257193939,1.2417,1611.3,1611.2,44.75621]
[1744257194140,1.2417,1611.3,1611.2,40.8]
[1744257194335,6.2417,1611.3,1611.2,40.8]
[1744257194541,8.9971,1611.3,1611.2,40.8]
[1744257195145,12.2049,1611.3,1611.2,40.8]
[1744257195449,1.24178,1611.2,1611.1,9.7104547]
[1744257195745,8.73318,1611.2,1611.1,9.7104547]
[1744257196248,1.24178,1611.2,1611.1,10.9523047]
[1744257196451,7.07575,1611.3,1611.2,1.24178]
[1744257196744,4.44942,1611.5,1611.4,1.24162]
[1744257197142,1.24178,1611.2,1611.1,16.4714247]
[1744257197348,1.24178,1611.2,1611.1,15.2085547]
[1744257197640,1.24178,1611.2,1611.1,16.4504047]
[1744257197846,1.24178,1611.2,1611.1,6.73995]
[1744257198052,1.24167,1611.4,1611.3,1.24165]
[1744257198551,1.24167,1611.4,1611.3,42.04165]
[1744257199547,1.24178,1611.2,1611.1,2.6991]
[1744257199741,1.24178,1611.2,1611.1,3.94095]
[1744257199944,1.24175,1611.3,1611.2,1.24178]
[1744257200242,1.24175,1611.3,1611.2,4.04668]
[1744257200445,1.24175,1611.3,1611.2,6.66518]
[1744257200636,1.24175,1611.3,1611.2,5.4234]
[1744257200836,1.24175,1611.3,1611.2,2.8049]
[1744257202148,1.24175,1611.3,1611.2,4.04668]
[1744257203055,1.24175,1611.3,1611.2,2.8049]
[1744257203853,1.24175,1611.3,1611.2,4.04668]
[1744257204254,1.24175,1611.3,1611.2,2.8049]
[1744257204647,1.24175,1611.3,1611.2,4.04668]
[1744257205357,0.00926099,1611.7,1611.3,3.10426]
[1744257205561,0.00926099,1611.7,1611.4,5.837]
[1744257205857,1.24152,1611.6,1611.5,3.87069]
[1744257206054,1.24152,1611.6,1611.5,1.24149]
[1744257206551,3.84298099,1611.7,1611.6,1.24147]
[1744257208461,2.60156099,1611.7,1611.6,1.24147]
[1744257208757,3.84295099,1611.7,1611.6,1.24147]
[1744257208958,3.84295099,1611.7,1611.6,4.01517]
[1744257209264,0.00926099,1611.7,1611.6,4.01517]
[1744257211862,5.834,1612.0,1611.9,1.24124]
[1744257212161,4.44889,1612.1,1612.0,1.24116]
[1744257212659,1.24116,1612.0,1611.9,3.89148]
[1744257213458,1.25044532,1612.1,1612.0,1.24116]
[1744257216463,1.24116,1612.0,1611.9,2.6503]
[1744257216664,1.24116,1612.0,1611.9,3.89154]
[1744257217563,1.24116,1612.0,1611.9,6.62524]
[1744257218156,1.25046532,1612.1,1612.0,1.24116]
[1744257218352,1.25046532,1612.1,1612.0,3.97486]
[1744257218560,1.25046532,1612.1,1612.0,2.7337]
[1744257218763,6.20419,1612.5,1612.0,2.7337]
[1744257218764,7.05682247,1612.7,1612.0,21.6835]
[1744257218972,8.29746247,1612.7,1612.6,1.2407]
[1744257219265,8.29744247,1612.7,1612.6,1.2407]
[1744257219766,8.29744247,1612.7,1612.6,3.7812]
[1744257220762,7.05682247,1612.7,1612.6,3.7812]
[1744257223169,7.05682247,1612.7,1612.6,8.5162]
[1744257223969,7.05682247,1612.7,1612.6,19.5122]
[1744257224174,9.38627473,1612.8,1612.6,19.5122]
[1744257224175,7.97640473,1612.8,1612.7,1.86142]
[1744257224470,7.97640473,1612.8,1612.7,48.57192]
[1744257224669,7.97640473,1612.8,1612.7,53.57192]
[1744257226272,3.8462,1613.3,1613.2,1.24024]
[1744257226668,1.24024,1613.2,1613.1,0.00931532]
[1744257226868,4.00584,1613.2,1613.1,0.00931532]
[1744257227768,9.00584,1613.2,1613.1,0.00931532]
[1744257229291,4.00584,1613.2,1613.1,0.00931532]
[1744257229692,4.00584,1613.2,1613.1,2.72071532]
[1744257229998,16.94764,1613.2,1613.1,0.00931532]
[1744257230184,22.78164,1613.2,1613.1,0.00931532]
[1744257233295,21.5414,1613.2,1613.1,0.00931532]
[1744257237188,16.5414,1613.2,1613.1,0.00931532]
[1744257241302,3.2078,1613.2,1613.1,0.00931532]
[1744257241801,3.2078,1613.2,1613.1,2.42891532]
[1744257242000,3.2078,1613.2,1613.1,4.99281532]
[1744257243501,10.0748,1613.4,1613.1,4.99281532]
[1744257243700,10.0748,1613.4,1613.2,2.4196]
[1744257243906,5.3418,1613.4,1613.2,2.4196]
[1744257244097,5.834,1613.5,1613.2,2.4196]
[1744257244303,3.2078,1613.9,1613.4,3.2078]
[1744257244504,3.2078,1613.9,1613.5,4.9135]
[1744257244803,8.4454,1614.0,1613.6,2.4569]
[1744257246100,5.834,1614.0,1613.6,2.4569]
[1744257246301,5.834,1614.0,1613.6,10.3977]
[1744257246508,3.2078,1614.1,1613.6,16.3937]
[1744257246709,3.2078,1614.1,1613.7,40.8]
[1744257246909,3.2078,1614.1,1613.8,2.4616]
[1744257247111,3.2078,1614.1,1613.8,4.8751]
[1744257247406,3.2078,1614.1,1613.9,2.4616]
[1744257247909,5.7976,1614.1,1613.7,40.8]
[1744257248107,2.5898,1614.0,1613.8,2.4616]
[1744257249402,5.8179,1613.9,1613.7,40.8]
[1744257249603,5.0831,1613.8,1613.1,3.83711532]
[1744257249803,3.2078,1613.5,1613.3,2.4616]
[1744257250105,7.8401,1613.4,1613.3,2.4616]
[1744257250510,5.834,1613.6,1613.3,5.0343]
[1744257250810,5.834,1613.6,1613.3,8.2421]
[1744257251012,5.834,1613.6,1613.4,2.4961]
[1744257251507,11.0298,1613.6,1613.4,2.4961]
[1744257251707,13.6741,1613.6,1613.4,2.4961]
[1744257252518,11.0199,1613.6,1613.4,2.4961]
[1744257252906,5.834,1613.6,1613.4,2.4961]
[1744257253101,5.834,1613.6,1613.5,4.44781]
[1744257253610,5.834,1613.6,1613.5,16.72981]
[1744257253911,1.23975,1613.9,1613.8,1.23978]
[1744257255113,1.23978,1613.8,1613.7,3.7998]
[1744257255713,1.23978,1613.8,1613.7,44.5998]
[1744257255914,1.23976,1613.9,1613.8,1.23972]
[1744257256116,1.23976,1613.9,1613.8,3.70422]
[1744257258017,1.23965,1614.0,1613.9,1.2397]
[1744257258215,1.23965,1614.0,1613.9,6.2758]
[1744257259521,1.23961,1614.1,1614.0,1.23956]
[1744257259917,4.44741,1614.1,1614.0,1.23956]
[1744257260118,1.23962,1614.0,1613.9,2.58091532]
[1744257260320,1.23962,1614.0,1613.9,0.00931532]
[1744257260720,6.30852,1614.0,1613.9,0.00931532]
[1744257260916,3.74792,1614.0,1613.9,1.24901532]
[1744257261520,1.23962,1614.0,1613.9,1.24901532]
[1744257263818,1.2396,1614.1,1614.0,1.23955]
[1744257264022,1.2396,1614.1,1614.0,3.74465]
[1744257264221,1.2396,1614.1,1614.0,6.35335]
[1744257264716,1.23962,1614.0,1613.9,0.00931532]
[1744257265424,14.24152,1614.0,1613.9,0.00931532]
[1744257266222,19.24152,1614.0,1613.9,5.32e-06]
[1744257266915,14.24152,1614.0,1613.9,5.32e-06]
[1744257267416,11.79462,1614.0,1613.9,5.32e-06]
[1744257267820,14.24152,1614.0,1613.9,5.32e-06]
[1744257268427,8.40752,1614.0,1613.9,5.32e-06]
[1744257268915,5.96062,1614.0,1613.9,1.23970532]
[1744257269116,1.23962,1614.0,1613.9,1.23970532]
[1744257269316,7.0829,1614.1,1614.0,1.23962]
[1744257269816,5.84331,1614.1,1614.0,3.58342]
[1744257270620,0.00931,1614.1,1614.0,8.58342]
[1744257271224,0.00931,1614.1,1614.0,3.58342]
[1744257274922,1.24886,1614.1,1614.0,3.58342]
[1744257275123,0.00931,1614.1,1614.0,3.58342]
[1744257276331,1.24886,1614.1,1614.0,3.58342]
[1744257277432,1.24886,1614.1,1614.0,6.15442]
[1744257279234,1.24886,1614.1,1614.0,2.571]
[1744257279426,1.24886,1614.1,1614.0,3.81062]
[1744257279731,3.74646,1614.1,1614.0,3.81062]
[1744257280034,1.24886,1614.1,1614.0,3.81062]
[1744257282036,1.24886,1614.1,1614.0,2.571]
[1744257282224,3.79636,1614.1,1614.0,2.571]
[1744257283425,1.23962,1614.0,1613.9,5.32e-06]
[1744257283625,3.82852,1614.0,1613.9,2.39740532]
[1744257284239,3.82852,1614.0,1613.9,3.63710532]
[1744257285539,3.82852,1614.0,1613.9,2.39740532]
[1744257286636,3.82852,1614.0,1613.9,5.32e-06]
[1744257286838,3.82852,1614.0,1613.9,2.58160532]
[1744257287032,3.82852,1614.0,1613.9,5.32e-06]
[1744257289037,19.37452,1614.0,1613.9,5.32e-06]
[1744257289340,1.24008,1613.4,1613.3,9.7104547]
[1744257289832,1.24008,1613.4,1613.3,12.2262547]
[1744257290433,1.24008,1613.4,1613.3,13.4664147]
[1744257291037,16.78477,1613.5,1613.4,1.24008]
[1744257291245,7.07407,1613.5,1613.4,3.75588]
[1744257291538,1.23993,1613.7,1613.6,1.2399]
[1744257292535,1.23993,1613.7,1613.6,3.826]
[1744257293748,1.23984,1613.8,1613.7,1.23985]
[1744257293949,1.23984,1613.8,1613.7,3.79465]
[1744257294350,1.23984,1613.8,1613.7,4.9168]
[1744257295145,12.8434,1613.9,1613.2,10.45332532]
[1744257295353,1.24016,1613.3,1613.2,2.53711532]
[1744257295553,1.24016,1613.3,1613.2,6.21682532]
[1744257296443,1.24016,1613.3,1613.2,4.97661532]
[1744257296654,1.24016,1613.3,1613.2,8.65195532]
[1744257297446,1.24016,1613.3,1613.2,7.41171532]
[1744257297655,3.64546,1613.3,1613.2,2.44441532]
[1744257298450,3.64546,1613.3,1613.2,1.24955532]
[1744257298651,3.64546,1613.3,1613.2,2.44441532]
[1744257299151,12.68726,1613.3,1613.2,0.00931532]
[1744257299348,22.40026,1613.3,1613.2,5.32e-06]
[1744257301052,17.40026,1613.3,1613.2,5.32e-06]
[1744257301354,12.68726,1613.3,1613.2,5.32e-06]
[1744257301759,9.47946,1613.3,1613.2,2.38470532]
[1744257301960,7.07416,1613.3,1613.2,3.62494532]
[1744257302149,13.4425,1613.5,1613.2,4.84520532]
[1744257302460,1.24014,1613.4,1613.3,3.49053]
[1744257302761,1.24014,1613.4,1613.3,2.2504]
[1744257302963,3.68764,1613.4,1613.3,2.2504]
[1744257303357,1.24016,1613.3,1613.2,5.32e-06]
[1744257303658,6.89546,1613.3,1613.2,5.32e-06]
[1744257304057,17.72946,1613.3,1613.2,5.32e-06]
[1744257305164,12.72946,1613.3,1613.2,5.32e-06]
[1744257306262,4.44796,1613.3,1613.2,5.32e-06]
[1744257306456,1.24011,1613.4,1613.3,1.24009]
[1744257306656,5.93584636,1613.4,1613.3,2.405]
[1744257308060,10.70004636,1613.4,1613.3,2.405]
[1744257308259,1.24016,1613.3,1613.2,5.32e-06]
[1744257308466,4.44796,1613.3,1613.2,5.32e-06]
[1744257308964,6.79396,1613.3,1613.2,5.32e-06]
[1744257309164,4.44796,1613.3,1613.2,5.32e-06]
[1744257309564,11.50796,1613.3,1613.2,5.32e-06]
[1744257309859,17.34196,1613.3,1613.2,5.32e-06]
[1744257310460,14.99596,1613.3,1613.2,5.32e-06]
[1744257310768,7.07416,1613.3,1613.2,2.24150532]
[1744257310965,7.07416,1613.3,1613.2,7.07500532]
[1744257311163,7.07416,1613.3,1613.2,8.31524532]
[1744257311866,1.24015,1613.4,1613.3,1.24011]
[1744257312054,1.24015,1613.4,1613.3,3.68391]
[1744257313254,10.32773636,1613.7,1613.3,3.68391]
[1744257313460,4.69573636,1613.7,1613.6,1.23993]
[1744257313665,4.69573636,1613.7,1613.5,1.23994]
[1744257313854,5.93558636,1613.7,1613.6,3.68373]
[1744257314262,5.93558636,1613.7,1613.6,6.10793]
[1744257314460,1.23985,1613.7,1613.6,6.10793]
[1744257314862,4.69573636,1613.8,1613.7,1.23985]
[1744257315072,4.69573636,1613.8,1613.7,3.61105]
[1744257315266,5.93551636,1613.8,1613.7,3.61105]
[1744257315566,5.93551636,1613.8,1613.7,44.41105]
[1744257317258,5.93551636,1613.8,1613.7,43.1712]
[1744257317868,10.46841636,1613.8,1613.7,43.1712]
[1744257318069,4.69573636,1613.8,1613.7,44.41105]
[1744257318973,1.23964,1614.0,1613.9,1.2397]
[1744257319364,1.24892,1614.1,1614.0,1.23962]
[1744257320066,1.24892,1614.1,1614.0,3.66192]
[1744257320673,0.00931,1614.1,1614.0,3.66192]
[1744257321368,0.00931,1614.1,1614.0,11.86972]
[1744257321577,4.69573636,1614.3,1614.2,1.23947]
[1744257321866,5.93512636,1614.3,1614.2,42.03947]
[1744257322471,5.93512636,1614.3,1614.2,43.1916]
[1744257323366,5.93512636,1614.3,1614.2,44.43107]
[1744257323964,5.93512636,1614.3,1614.2,43.1916]
[1744257324367,1.23939,1614.3,1614.2,43.1916]
[1744257325573,1.23939,1614.3,1614.2,44.43107]
[1744257325872,1.24868532,1614.4,1614.3,1.23939]
[1744257326069,1.24868532,1614.4,1614.3,3.57529]
[1744257326788,0.00931532,1614.4,1614.3,3.57529]
[1744257327168,0.00931532,1614.4,1614.3,8.57529]
[1744257328068,4.69573636,1614.6,1614.5,1.23924]
[1744257328274,4.69573636,1614.6,1614.5,15.14604]
[1744257328476,1.12903636,1614.6,1614.5,20.14604]
[1744257328775,1.12903636,1614.9,1614.8,1.23901]
[1744257328974,1.12903636,1614.9,1614.8,6.23901]
[1744257329277,2.36796636,1614.9,1614.8,5.94201]
[1744257329470,1.12903636,1614.9,1614.8,5.94201]
[1744257330075,1.12903636,1614.9,1614.7,4.703]
[1744257330275,2.36804636,1614.9,1614.8,1.23901]
[1744257330882,1.12903636,1614.9,1614.8,1.23901]
[1744257331176,1.12903636,1614.9,1614.8,5.66361]
[1744257331372,2.36796636,1614.9,1614.8,4.4246]
[1744257331670,2.36796636,1614.9,1614.8,7.96191]
[1744257331865,4.66736636,1614.9,1614.8,7.96191]
[1744257332775,3.42843636,1614.9,1614.8,7.96191]
[1744257332970,1.12903636,1614.9,1614.8,7.96191]
[1744257333268,7.26725,1615.0,1614.9,1.23893]
[1744257333470,7.26725,1615.0,1614.9,3.58423]
[1744257333871,7.26725,1615.0,1614.9,8.58423]
[1744257334271,7.26725,1615.0,1614.9,3.58423]
[1744257335271,12.26725,1615.0,1614.6,0.62]
[1744257335477,2.2734,1614.9,1614.6,2.795]
[1744257335678,1.23906,1614.8,1614.7,1.23904]
[1744257336071,3.51246,1614.8,1614.7,1.23904]
[1744257336270,2.2734,1614.8,1614.7,1.23904]
[1744257336475,3.51241,1614.8,1614.7,1.23904]
[1744257336676,3.46178,1614.9,1614.8,1.23901]
[1744257336980,12.74845,1615.0,1614.9,1.23893]
[1744257337366,13.98731,1615.0,1614.9,1.23893]
[1744257337568,13.98731,1615.0,1614.9,3.41393]
[1744257337780,13.98731,1615.0,1614.9,2.175]
[1744257338176,13.98731,1615.0,1614.9,3.41393]
[1744257338680,10.77951,1615.0,1614.9,3.41393]
[1744257339376,10.77951,1615.0,1614.9,2.175]
[1744257339583,1.23893,1614.9,1614.8,3.49325]
[1744257339877,1.23905,1614.8,1614.7,1.23903]
[1744257340078,2.2722,1614.9,1614.8,2.1715]
[1744257340379,3.51113,1614.9,1614.8,3.41051]
[1744257341481,8.50618,1615.0,1614.9,1.23893]
[1744257341684,8.50618,1615.0,1614.9,3.54593]
[1744257341874,10.68508,1615.0,1614.9,3.54593]
[1744257344580,3.09734,1614.9,1614.6,6.85]
[1744257344888,1.23909,1614.7,1614.6,2.148]
[1744257345188,1.23909,1614.7,1614.6,2.3768]
[1744257345484,5.95499,1614.7,1614.6,3.61596]
[1744257347685,1.23916,1614.6,1614.5,3.44317]
[1744257347888,3.40856,1614.6,1614.5,5.71007]
[1744257348087,1.23924,1614.5,1614.4,11.85885]
[1744257348283,1.23924,1614.5,1614.4,5.86285]
[1744257348486,3.40863,1614.6,1614.5,1.23924]
[1744257348889,1.23924,1614.5,1614.4,5.86288]
[1744257349081,3.40864,1614.5,1614.4,3.50618]
[1744257349686,3.40864,1614.5,1614.4,2.2669]
[1744257349886,3.40864,1614.5,1614.4,1.23932]
[1744257350078,1.23932,1614.4,1614.3,5.75583]
[1744257350279,3.40872,1614.4,1614.3,5.75583]
[1744257350986,3.40872,1614.4,1614.3,4.5165]
[1744257351288,1.23947,1614.2,1614.1,0.00931532]
[1744257351684,1.23947,1614.2,1614.1,1.24886532]
[1744257351989,14.73655,1614.3,1614.2,1.23947]
[1744257352180,14.73655,1614.3,1614.2,3.50827]
[1744257352181,9.0418,1614.3,1614.2,3.50827]
[1744257352383,3.53897,1614.5,1614.4,1.23932]
[1744257354889,1.23932,1614.4,1614.3,3.50813]
[1744257355090,3.39422,1614.4,1614.3,2.2688]
[1744257355390,3.39422,1614.4,1614.3,3.50819]
[1744257355980,2.1549,1614.4,1614.3,3.50819]
[1744257356290,3.39422,1614.4,1614.3,3.50819]
[1744257356585,3.2078,1614.9,1614.4,3.09812]
[1744257356796,6.8362,1615.5,1614.9,1.23893]
[1744257357086,3.57738,1615.3,1614.9,5.93293]
[1744257357284,2.3387,1615.3,1614.9,51.39363]
[1744257357484,5.85805,1615.0,1614.9,62.38963]
[1744257357684,3.71405,1615.0,1614.9,62.38963]
[1744257358882,7.12164333,1615.4,1615.3,1.23863]
[1744257359082,7.12164333,1615.4,1615.3,4.44643]
[1744257360092,2.3387,1615.6,1615.5,1.23847]
[1744257360889,1.23847,1615.5,1615.4,3.52911]
[1744257361292,3.2078,1616.0,1615.5,3.09619]
[1744257361485,6.74186,1616.0,1615.8,1.23822]
[1744257361687,2.2959,1616.0,1615.9,1.23817]
[1744257361884,8.35965333,1616.1,1615.7,11.3824]
[1744257362085,8.35965333,1616.1,1615.7,8.2866]
[1744257362086,1.23819,1615.9,1615.7,8.2866]
[1744257362291,1.23824,1615.8,1615.7,2.2906]
[1744257362489,1.23821,1615.9,1615.7,3.52892]
[1744257363097,1.23821,1615.9,1615.8,1.23824]
[1744257363594,12.95564333,1616.1,1615.7,2.2906]
[1744257363796,16.05070333,1616.1,1615.7,2.2906]
[1744257364097,1.23824,1615.9,1615.7,3.52887]
[1744257364499,1.23824,1615.8,1615.7,3.52887]
[1744257364797,19.25850333,1616.1,1615.6,10.0606]
[1744257364988,1.23822,1615.9,1615.7,1.23832]
[1744257365189,1.23822,1615.9,1615.8,1.23824]
[1744257365497,16.16344333,1616.1,1615.6,10.0606]
[1744257365691,19.25849333,1616.1,1615.7,1.23825]
[1744257365890,1.23824,1615.8,1615.7,3.49395]
[1744257366192,1.23824,1615.8,1615.7,1.23825]
[1744257366494,1.23863,1615.3,1615.2,0.00928591]
[1744257366696,1.23855,1615.5,1615.3,1.23856]
[1744257366894,1.23855,1615.4,1615.3,1.23856]
[1744257367200,1.23861,1615.4,1615.3,1.23862]
[1744257367589,1.23863,1615.3,1615.2,3.50362591]
[1744257367896,3.096,1615.6,1615.2,3.50362591]
[1744257367897,1.23858,1615.4,1615.3,1.23859]
[1744257369897,3.096,1615.6,1615.5,1.23843]
[1744257369898,1.23845,1615.6,1615.5,1.23843]
[1744257370089,1.23843,1615.6,1615.5,1.23841]
[1744257370396,5.59106,1615.7,1615.6,1.2384]